[Event "Titled Tuesday Blitz November 01 Late 2022"]
[White "Vifleemskaia, Svetlana"]
[Black "Barria Zuniga, Daniel"]
[WhiteFideId "4129490"]
[BlackFideId "3400816"]
[WhiteElo "1929"]
[BlackElo "2414"]
[Result "0-1"]
[Round "02"]
[TimeControl "180+1"]
[Date "2022.11.02"]
[WhiteClock "0:00:02"]
[BlackClock "0:00:52"]

1. d4 {[%clk 0:03:00]}  g6 {[%clk 0:02:57]} 2. c4 {[%clk 0:03:00]}  Bg7 {[%clk 0:02:58]} 3. e4 {[%clk 0:02:59]}  c5 {[%clk 0:02:59]} 4. d5 {[%clk 0:02:58]}  d6 {[%clk 0:03:00]} 5. Nc3 {[%clk 0:02:57]}  e6 {[%clk 0:03:00]} 6. Nf3 {[%clk 0:02:55]}  exd5 {[%clk 0:03:00]} 7. cxd5 {[%clk 0:02:53]}  a6 {[%clk 0:03:01]} 8. a4 {[%clk 0:02:52]}  Ne7 {[%clk 0:03:01]} 9. h3 {[%clk 0:02:52]}  O-O {[%clk 0:03:02]} 10. Bd3 {[%clk 0:02:47]}  f5 {[%clk 0:03:02]} 11. O-O {[%clk 0:02:43]}  f4 {[%clk 0:03:02]} 12. Re1 {[%clk 0:02:42]}  Nd7 {[%clk 0:03:01]} 13. Ng5 {[%clk 0:02:27]}  Ne5 {[%clk 0:03:00]} 14. Ne6 {[%clk 0:02:26]}  Bxe6 {[%clk 0:02:59]} 15. dxe6 {[%clk 0:02:27]}  f3 {[%clk 0:03:00]} 16. Bf1 {[%clk 0:02:24]}  N7c6 {[%clk 0:02:53]} 17. Nd5 {[%clk 0:02:14]}  Qh4 {[%clk 0:01:51]} 18. Be3 {[%clk 0:01:47]}  Rae8 {[%clk 0:01:43]} 19. e7 {[%clk 0:00:52]}  Rf7 {[%clk 0:01:40]} 20. Nc7 {[%clk 0:00:42]}  Rexe7 {[%clk 0:01:35]} 21. Nd5 {[%clk 0:00:32]}  Re8 {[%clk 0:01:35]} 22. Nc3 {[%clk 0:00:27]}  g5 {[%clk 0:01:23]} 23. Qxd6 {[%clk 0:00:20]}  g4 {[%clk 0:01:20]} 24. Qxc5 {[%clk 0:00:14]}  fxg2 {[%clk 0:01:14]} 25. Bxg2 {[%clk 0:00:13]}  Nf3+ {[%clk 0:01:08]} 26. Bxf3 {[%clk 0:00:08]}  gxf3 {[%clk 0:01:05]} 27. Qg5 {[%clk 0:00:07]}  Qxh3 {[%clk 0:01:06]} 28. Qg3 {[%clk 0:00:06]}  Qh5 {[%clk 0:01:05]} 29. Qg5 {[%clk 0:00:06]}  Qxg5+ {[%clk 0:01:02]} 30. Bxg5 {[%clk 0:00:06]}  Re6 {[%clk 0:01:03]} 31. Be3 {[%clk 0:00:05]}  Rg6+ {[%clk 0:01:01]} 32. Kf1 {[%clk 0:00:04]}  Ne5 {[%clk 0:00:59]} 33. Red1 {[%clk 0:00:03]}  Ng4 {[%clk 0:00:59]} 34. Rd8+ {[%clk 0:00:03]}  Bf8 {[%clk 0:00:56]} 35. Bc5 {[%clk 0:00:02]}  Nh2+ {[%clk 0:00:52]} 0-1


[Site "https://www.chess.com"]

[Event "Titled Tuesday Blitz November 01 Late 2022"]
[White "Wartiovaara, Oliver"]
[Black "Danielyan, Vahe"]
[WhiteFideId "513024"]
[BlackFideId "13304828"]
[WhiteElo "2197"]
[BlackElo "2421"]
[Result "0-1"]
[Round "02"]
[TimeControl "180+1"]
[Date "2022.11.02"]
[WhiteClock "0:00:01"]
[BlackClock "0:01:26"]

1. e4 {[%clk 0:03:00]}  c6 {[%clk 0:02:59]} 2. d4 {[%clk 0:03:00]}  d5 {[%clk 0:03:00]} 3. f3 {[%clk 0:02:52]}  Nd7 {[%clk 0:02:58]} 4. Nc3 {[%clk 0:02:45]}  e5 {[%clk 0:02:56]} 5. Nge2 {[%clk 0:02:32]}  Bb4 {[%clk 0:02:56]} 6. a3 {[%clk 0:02:30]}  Bxc3+ {[%clk 0:02:55]} 7. Nxc3 {[%clk 0:02:30]}  Ngf6 {[%clk 0:02:55]} 8. exd5 {[%clk 0:02:25]}  cxd5 {[%clk 0:02:53]} 9. dxe5 {[%clk 0:02:18]}  Nxe5 {[%clk 0:02:54]} 10. Bb5+ {[%clk 0:02:18]}  Nc6 {[%clk 0:02:53]} 11. O-O {[%clk 0:02:14]}  O-O {[%clk 0:02:53]} 12. Kh1 {[%clk 0:02:06]}  Be6 {[%clk 0:02:53]} 13. Bg5 {[%clk 0:02:05]}  h6 {[%clk 0:02:51]} 14. Bh4 {[%clk 0:02:04]}  Rc8 {[%clk 0:02:50]} 15. Ne2 {[%clk 0:02:03]}  Ne5 {[%clk 0:02:39]} 16. Nd4 {[%clk 0:02:00]}  Ng6 {[%clk 0:02:38]} 17. Bf2 {[%clk 0:01:58]}  a6 {[%clk 0:02:38]} 18. Bd3 {[%clk 0:01:58]}  Nf4 {[%clk 0:02:37]} 19. Re1 {[%clk 0:01:53]}  Re8 {[%clk 0:02:36]} 20. Bg3 {[%clk 0:01:50]}  Nxd3 {[%clk 0:02:35]} 21. Qxd3 {[%clk 0:01:51]}  Qb6 {[%clk 0:02:35]} 22. b3 {[%clk 0:01:49]}  Bd7 {[%clk 0:02:34]} 23. Be5 {[%clk 0:01:48]}  Nh7 {[%clk 0:02:18]} 24. Rad1 {[%clk 0:01:43]}  Nf8 {[%clk 0:02:18]} 25. Nf5 {[%clk 0:01:32]}  Bxf5 {[%clk 0:02:17]} 26. Qxf5 {[%clk 0:01:33]}  Ng6 {[%clk 0:02:18]} 27. Bd4 {[%clk 0:01:22]}  Qxd4 {[%clk 0:02:12]} 28. Qxc8 {[%clk 0:01:19]}  Rxc8 {[%clk 0:01:43]} 29. Rxd4 {[%clk 0:01:18]}  Rxc2 {[%clk 0:01:44]} 30. Rxd5 {[%clk 0:01:16]}  Nf4 {[%clk 0:01:44]} 31. Rd8+ {[%clk 0:01:10]}  Kh7 {[%clk 0:01:44]} 32. g3 {[%clk 0:01:10]}  Nh3 {[%clk 0:01:40]} 33. Rd7 {[%clk 0:01:05]}  Nf2+ {[%clk 0:01:40]} 34. Kg1 {[%clk 0:00:54]}  Nh3+ {[%clk 0:01:40]} 35. Kh1 {[%clk 0:00:54]}  Nf2+ {[%clk 0:01:40]} 36. Kg2 {[%clk 0:00:38]}  Nd3+ {[%clk 0:01:40]} 37. Kf1 {[%clk 0:00:37]}  Nxe1 {[%clk 0:01:38]} 38. Kxe1 {[%clk 0:00:37]}  Rxh2 {[%clk 0:01:35]} 39. Rxf7 {[%clk 0:00:34]}  b5 {[%clk 0:01:33]} 40. Ra7 {[%clk 0:00:33]}  Rb2 {[%clk 0:01:34]} 41. b4 {[%clk 0:00:33]}  Rb3 {[%clk 0:01:34]} 42. Rxa6 {[%clk 0:00:29]}  Rxf3 {[%clk 0:01:34]} 43. g4 {[%clk 0:00:27]}  Rg3 {[%clk 0:01:35]} 44. Rb6 {[%clk 0:00:25]}  Rxa3 {[%clk 0:01:33]} 45. Rxb5 {[%clk 0:00:25]}  Rg3 {[%clk 0:01:34]} 46. g5 {[%clk 0:00:23]}  h5 {[%clk 0:01:34]} 47. Kf2 {[%clk 0:00:22]}  Rb3 {[%clk 0:01:30]} 48. Rb6 {[%clk 0:00:21]}  h4 {[%clk 0:01:27]} 49. Kg2 {[%clk 0:00:22]}  Rg3+ {[%clk 0:01:25]} 50. Kh2 {[%clk 0:00:22]}  Rb3 {[%clk 0:01:26]} 51. b5 {[%clk 0:00:18]}  Rg3 {[%clk 0:01:26]} 52. Rb8 {[%clk 0:00:14]}  Kg6 {[%clk 0:01:26]} 53. b6 {[%clk 0:00:12]}  Rb3 {[%clk 0:01:25]} 54. b7 {[%clk 0:00:05]}  Kxg5 {[%clk 0:01:25]} 55. Kg2 {[%clk 0:00:04]}  g6 {[%clk 0:01:24]} 56. Kh2 {[%clk 0:00:04]}  Rb4 {[%clk 0:01:20]} 57. Kg2 {[%clk 0:00:03]}  Rb3 {[%clk 0:01:21]} 58. Kh2 {[%clk 0:00:03]}  Rb2+ {[%clk 0:01:21]} 59. Kg1 {[%clk 0:00:03]}  Rb6 {[%clk 0:01:22]} 60. Kh2 {[%clk 0:00:02]}  Kg4 {[%clk 0:01:22]} 61. Kg2 {[%clk 0:00:02]}  Rb2+ {[%clk 0:01:23]} 62. Kg1 {[%clk 0:00:02]}  g5 {[%clk 0:01:23]} 63. Kf1 {[%clk 0:00:03]}  Rb1+ {[%clk 0:01:24]} 64. Ke2 {[%clk 0:00:03]}  h3 {[%clk 0:01:24]} 65. Kd3 {[%clk 0:00:02]}  Kg3 {[%clk 0:01:24]} 66. Rg8 {[%clk 0:00:01]}  g4 {[%clk 0:01:24]} 67. b8=Q+ {[%clk 0:00:01]}  Rxb8 {[%clk 0:01:24]} 68. Rxb8 {[%clk 0:00:01]}  h2 {[%clk 0:01:25]} 69. Rh8 {[%clk 0:00:01]}  Kg2 {[%clk 0:01:26]} 0-1


[Site "https://www.chess.com"]

[Event "Titled Tuesday Blitz November 01 Late 2022"]
[White "Weetik, Vjacheslav"]
[Black "Fishchuk, Vladyslav"]
[WhiteFideId "4153472"]
[BlackFideId "34122117"]
[WhiteElo "2469"]
[BlackElo "2054"]
[Result "1-0"]
[Round "02"]
[TimeControl "180+1"]
[Date "2022.11.02"]
[WhiteClock "0:00:04"]
[BlackClock "0:00:57"]

1. d4 {[%clk 0:02:59]}  Nf6 {[%clk 0:02:57]} 2. c4 {[%clk 0:02:58]}  e6 {[%clk 0:02:57]} 3. g3 {[%clk 0:02:58]}  d5 {[%clk 0:02:56]} 4. Nf3 {[%clk 0:02:59]}  dxc4 {[%clk 0:02:53]} 5. Bg2 {[%clk 0:02:58]}  c5 {[%clk 0:02:44]} 6. O-O {[%clk 0:02:58]}  Nc6 {[%clk 0:02:43]} 7. Qa4 {[%clk 0:02:58]}  Bd7 {[%clk 0:02:39]} 8. Qxc4 {[%clk 0:02:49]}  b5 {[%clk 0:02:36]} 9. Qd3 {[%clk 0:02:47]}  c4 {[%clk 0:02:36]} 10. Qd1 {[%clk 0:02:47]}  Rc8 {[%clk 0:02:33]} 11. Nc3 {[%clk 0:02:18]}  a6 {[%clk 0:02:23]} 12. e4 {[%clk 0:02:14]}  b4 {[%clk 0:02:14]} 13. e5 {[%clk 0:02:05]}  bxc3 {[%clk 0:02:12]} 14. exf6 {[%clk 0:02:05]}  cxb2 {[%clk 0:02:12]} 15. Bxb2 {[%clk 0:02:00]}  Qxf6 {[%clk 0:01:58]} 16. Rb1 {[%clk 0:00:47]}  Nb4 {[%clk 0:01:48]} 17. Ne5 {[%clk 0:00:17]}  Bb5 {[%clk 0:01:27]} 18. Ba3 {[%clk 0:00:08]}  Nd5 {[%clk 0:01:24]} 19. Bxf8 {[%clk 0:00:08]}  Kxf8 {[%clk 0:01:24]} 20. Bxd5 {[%clk 0:00:05]}  exd5 {[%clk 0:01:21]} 21. Rxb5 {[%clk 0:00:05]}  Qd6 {[%clk 0:01:15]} 22. Rb7 {[%clk 0:00:05]}  h5 {[%clk 0:01:08]} 23. Rxf7+ {[%clk 0:00:04]}  Kg8 {[%clk 0:01:09]} 24. Qf3 {[%clk 0:00:03]}  c3 {[%clk 0:01:07]} 25. Qf5 {[%clk 0:00:04]}  Re8 {[%clk 0:01:02]} 26. Rc1 {[%clk 0:00:03]}  h4 {[%clk 0:01:00]} 27. Rxc3 {[%clk 0:00:03]}  hxg3 {[%clk 0:00:59]} 28. Rxg3 {[%clk 0:00:03]}  Qh6 {[%clk 0:01:00]} 29. Rfxg7+ {[%clk 0:00:03]}  Qxg7 {[%clk 0:00:58]} 30. Qf7+ {[%clk 0:00:04]}  Kh7 {[%clk 0:00:57]} 31. Qxg7# {[%clk 0:00:04]} 1-0


[Site "https://www.chess.com"]

[Event "Titled Tuesday Blitz November 01 Late 2022"]
[White "Wieczorek, Zbigniew"]
[Black "Novik, Maxim"]
[WhiteFideId "1102001"]
[BlackFideId "4102924"]
[WhiteElo "2271"]
[BlackElo "2312"]
[Result "0-1"]
[Round "02"]
[TimeControl "180+1"]
[Date "2022.11.02"]
[WhiteClock "0:00:05"]
[BlackClock "0:01:37"]

1. d4 {[%clk 0:02:57]}  Nf6 {[%clk 0:02:59]} 2. c4 {[%clk 0:02:57]}  g6 {[%clk 0:02:59]} 3. Nc3 {[%clk 0:02:56]}  d5 {[%clk 0:02:59]} 4. cxd5 {[%clk 0:02:56]}  Nxd5 {[%clk 0:02:59]} 5. Bd2 {[%clk 0:02:57]}  Bg7 {[%clk 0:02:59]} 6. e4 {[%clk 0:02:57]}  Nxc3 {[%clk 0:02:59]} 7. Bxc3 {[%clk 0:02:57]}  c5 {[%clk 0:02:59]} 8. d5 {[%clk 0:02:57]}  Bxc3+ {[%clk 0:02:58]} 9. bxc3 {[%clk 0:02:58]}  e6 {[%clk 0:02:59]} 10. Nf3 {[%clk 0:02:49]}  exd5 {[%clk 0:02:57]} 11. exd5 {[%clk 0:02:47]}  O-O {[%clk 0:02:55]} 12. Be2 {[%clk 0:02:47]}  Qf6 {[%clk 0:02:55]} 13. O-O {[%clk 0:02:46]}  Qxc3 {[%clk 0:02:50]} 14. Rc1 {[%clk 0:02:45]}  Qa5 {[%clk 0:02:48]} 15. Ne5 {[%clk 0:02:20]}  Nd7 {[%clk 0:02:46]} 16. Ng4 {[%clk 0:01:57]}  h5 {[%clk 0:02:40]} 17. Ne3 {[%clk 0:01:55]}  Nf6 {[%clk 0:02:39]} 18. Qc2 {[%clk 0:01:44]}  Bd7 {[%clk 0:02:09]} 19. Qxc5 {[%clk 0:01:23]}  Qxc5 {[%clk 0:02:08]} 20. Rxc5 {[%clk 0:01:22]}  Rfc8 {[%clk 0:02:07]} 21. Rfc1 {[%clk 0:01:21]}  Rxc5 {[%clk 0:02:06]} 22. Rxc5 {[%clk 0:01:21]}  Rc8 {[%clk 0:02:05]} 23. Rxc8+ {[%clk 0:01:19]}  Bxc8 {[%clk 0:02:05]} 24. h3 {[%clk 0:01:13]}  Kf8 {[%clk 0:02:05]} 25. Kf1 {[%clk 0:01:11]}  Ke7 {[%clk 0:02:05]} 26. Bf3 {[%clk 0:01:10]}  Kd6 {[%clk 0:02:02]} 27. Ke2 {[%clk 0:01:11]}  b5 {[%clk 0:01:58]} 28. Kd3 {[%clk 0:01:10]}  Kc5 {[%clk 0:01:57]} 29. a3 {[%clk 0:01:06]}  Bb7 {[%clk 0:01:55]} 30. g4 {[%clk 0:00:55]}  hxg4 {[%clk 0:01:51]} 31. hxg4 {[%clk 0:00:55]}  Nxd5 {[%clk 0:01:48]} 32. Bxd5 {[%clk 0:00:52]}  Bxd5 {[%clk 0:01:47]} 33. g5 {[%clk 0:00:52]}  a5 {[%clk 0:01:47]} 34. Ng4 {[%clk 0:00:46]}  b4 {[%clk 0:01:41]} 35. axb4+ {[%clk 0:00:46]}  Kxb4 {[%clk 0:01:41]} 36. Kc2 {[%clk 0:00:40]}  a4 {[%clk 0:01:41]} 37. Kb2 {[%clk 0:00:39]}  a3+ {[%clk 0:01:41]} 38. Ka1 {[%clk 0:00:36]}  Kc3 {[%clk 0:01:41]} 39. Ne3 {[%clk 0:00:31]}  Bb3 {[%clk 0:01:39]} 40. f4 {[%clk 0:00:25]}  Kd3 {[%clk 0:01:39]} 41. Ng2 {[%clk 0:00:06]}  Ke4 {[%clk 0:01:39]} 42. Kb1 {[%clk 0:00:05]}  Kf3 {[%clk 0:01:37]} 0-1


[Site "https://www.chess.com"]

[Event "Titled Tuesday Blitz November 01 Late 2022"]
[White "Zanette, Edgard Vinicius"]
[Black "Salman, Pavel"]
[WhiteFideId "2109263"]
[BlackFideId "24153753"]
[WhiteElo "2236"]
[BlackElo "2187"]
[Result "0-1"]
[Round "02"]
[TimeControl "180+1"]
[Date "2022.11.02"]
[WhiteClock "0:01:17"]
[BlackClock "0:01:34"]

1. e4 {[%clk 0:03:00]}  d6 {[%clk 0:02:57]} 2. d4 {[%clk 0:03:00]}  Nf6 {[%clk 0:02:56]} 3. Nc3 {[%clk 0:03:00]}  g6 {[%clk 0:02:56]} 4. f3 {[%clk 0:03:00]}  Bg7 {[%clk 0:02:56]} 5. Be3 {[%clk 0:02:59]}  O-O {[%clk 0:02:54]} 6. Qd2 {[%clk 0:02:59]}  c5 {[%clk 0:02:55]} 7. dxc5 {[%clk 0:02:59]}  Qa5 {[%clk 0:02:51]} 8. Nd5 {[%clk 0:02:55]}  Qxd2+ {[%clk 0:02:47]} 9. Bxd2 {[%clk 0:02:51]}  Nxd5 {[%clk 0:02:46]} 10. exd5 {[%clk 0:02:51]}  dxc5 {[%clk 0:02:46]} 11. O-O-O {[%clk 0:02:51]}  Nd7 {[%clk 0:02:41]} 12. c4 {[%clk 0:02:47]}  Nb6 {[%clk 0:02:40]} 13. Bd3 {[%clk 0:02:46]}  Rd8 {[%clk 0:02:33]} 14. Kc2 {[%clk 0:02:38]}  e6 {[%clk 0:02:33]} 15. dxe6 {[%clk 0:02:27]}  Bxe6 {[%clk 0:02:34]} 16. b3 {[%clk 0:02:26]}  a5 {[%clk 0:02:26]} 17. Bg5 {[%clk 0:02:25]}  Rd7 {[%clk 0:02:23]} 18. Ne2 {[%clk 0:02:21]}  a4 {[%clk 0:02:23]} 19. Be4 {[%clk 0:02:20]}  axb3+ {[%clk 0:02:22]} 20. axb3 {[%clk 0:02:19]}  Ra2+ {[%clk 0:02:21]} 21. Kc1 {[%clk 0:02:13]}  Rxe2 {[%clk 0:02:09]} 22. Rxd7 {[%clk 0:02:09]}  Nxd7 {[%clk 0:02:08]} 23. Bxb7 {[%clk 0:01:58]}  Rxg2 {[%clk 0:02:07]} 24. Be7 {[%clk 0:01:56]}  Bb2+ {[%clk 0:01:59]} 25. Kd1 {[%clk 0:01:53]}  Bc3 {[%clk 0:01:56]} 26. f4 {[%clk 0:01:49]}  Bg4+ {[%clk 0:01:55]} 27. Kc1 {[%clk 0:01:49]}  Ra2 {[%clk 0:01:50]} 28. Bc6 {[%clk 0:01:34]}  Bf5 {[%clk 0:01:37]} 29. Kd1 {[%clk 0:01:19]}  Bc2+ {[%clk 0:01:36]} 30. Ke2 {[%clk 0:01:17]}  Be4+ {[%clk 0:01:34]} 0-1


[Site "https://www.chess.com"]

[Event "Titled Tuesday Blitz November 01 Late 2022"]
[White "Zierk, Steven"]
[Black "Ambartsumova, Karina"]
[WhiteFideId "2034255"]
[BlackFideId "4166299"]
[WhiteElo "2494"]
[BlackElo "2299"]
[Result "1-0"]
[Round "02"]
[TimeControl "180+1"]
[Date "2022.11.01"]
[WhiteClock "0:00:27"]
[BlackClock "0:00:07"]

1. d4 {[%clk 0:03:00]}  Nf6 {[%clk 0:02:59]} 2. c4 {[%clk 0:03:00]}  g6 {[%clk 0:02:59]} 3. Nc3 {[%clk 0:02:59]}  Bg7 {[%clk 0:03:00]} 4. e4 {[%clk 0:02:59]}  O-O {[%clk 0:03:00]} 5. Nf3 {[%clk 0:02:58]}  d6 {[%clk 0:03:00]} 6. Be2 {[%clk 0:02:58]}  e5 {[%clk 0:02:57]} 7. Be3 {[%clk 0:02:58]}  Ng4 {[%clk 0:02:54]} 8. Bg5 {[%clk 0:02:58]}  f6 {[%clk 0:02:54]} 9. Bc1 {[%clk 0:02:59]}  Nc6 {[%clk 0:02:45]} 10. O-O {[%clk 0:02:56]}  Nh6 {[%clk 0:02:37]} 11. d5 {[%clk 0:02:51]}  Ne7 {[%clk 0:02:36]} 12. b4 {[%clk 0:02:51]}  a5 {[%clk 0:02:35]} 13. bxa5 {[%clk 0:02:52]}  Rxa5 {[%clk 0:02:32]} 14. Nd2 {[%clk 0:02:52]}  f5 {[%clk 0:02:26]} 15. Nb3 {[%clk 0:02:51]}  Ra8 {[%clk 0:02:26]} 16. f3 {[%clk 0:02:48]}  f4 {[%clk 0:02:21]} 17. c5 {[%clk 0:02:48]}  g5 {[%clk 0:02:19]} 18. cxd6 {[%clk 0:02:35]}  cxd6 {[%clk 0:02:19]} 19. a4 {[%clk 0:02:35]}  Ng6 {[%clk 0:01:54]} 20. Nb5 {[%clk 0:02:19]}  Nf7 {[%clk 0:01:39]} 21. a5 {[%clk 0:02:09]}  h5 {[%clk 0:01:37]} 22. Ba3 {[%clk 0:02:08]}  Nh4 {[%clk 0:01:02]} 23. Rc1 {[%clk 0:02:03]}  g4 {[%clk 0:01:01]} 24. fxg4 {[%clk 0:02:00]}  hxg4 {[%clk 0:00:50]} 25. Bxg4 {[%clk 0:01:53]}  Qg5 {[%clk 0:00:50]} 26. Rxc8 {[%clk 0:01:06]}  Raxc8 {[%clk 0:00:49]} 27. Nxd6 {[%clk 0:01:06]}  Nxd6 {[%clk 0:00:28]} 28. Bxd6 {[%clk 0:01:07]}  Rfd8 {[%clk 0:00:24]} 29. Bc5 {[%clk 0:01:03]}  Bf8 {[%clk 0:00:19]} 30. Bb6 {[%clk 0:00:50]}  Re8 {[%clk 0:00:18]} 31. g3 {[%clk 0:00:48]}  fxg3 {[%clk 0:00:07]} 32. hxg3 {[%clk 0:00:48]}  Rc3 {[%clk 0:00:08]} 33. Kh2 {[%clk 0:00:39]}  Rxb3 {[%clk 0:00:06]} 34. Qxb3 {[%clk 0:00:35]}  Qxg4 {[%clk 0:00:07]} 35. gxh4 {[%clk 0:00:33]}  Qxh4+ {[%clk 0:00:07]} 36. Qh3 {[%clk 0:00:33]}  Qxh3+ {[%clk 0:00:07]} 37. Kxh3 {[%clk 0:00:33]}  Rc8 {[%clk 0:00:07]} 38. Kg4 {[%clk 0:00:30]}  Rc4 {[%clk 0:00:06]} 39. Kf5 {[%clk 0:00:30]}  Bd6 {[%clk 0:00:05]} 40. Ke6 {[%clk 0:00:28]}  Bc5 {[%clk 0:00:05]} 41. Bxc5 {[%clk 0:00:27]}  Rxc5 {[%clk 0:00:06]} 42. d6 {[%clk 0:00:28]}  Rxa5 {[%clk 0:00:06]} 43. d7 {[%clk 0:00:28]}  Ra8 {[%clk 0:00:07]} 44. Rc1 {[%clk 0:00:26]}  b5 {[%clk 0:00:07]} 45. Rc8+ {[%clk 0:00:26]}  Kg7 {[%clk 0:00:07]} 46. Rxa8 {[%clk 0:00:26]}  b4 {[%clk 0:00:07]} 47. d8=Q {[%clk 0:00:27]} 1-0


[Site "https://www.chess.com"]

[Event "Titled Tuesday Blitz November 01 Late 2022"]
[White "chess50years"]
[Black "Boidiya, Sidi"]
[BlackFideId "19600100"]
[WhiteElo "1998"]
[BlackElo "2113"]
[Result "1-0"]
[Round "02"]
[TimeControl "180+1"]
[Date "2022.11.02"]
[WhiteClock "0:00:10"]
[BlackClock "0:00:52"]

1. d4 {[%clk 0:03:00]}  d5 {[%clk 0:02:46]} 2. c4 {[%clk 0:03:00]}  e5 {[%clk 0:02:46]} 3. e3 {[%clk 0:02:59]}  exd4 {[%clk 0:02:45]} 4. exd4 {[%clk 0:02:58]}  Nf6 {[%clk 0:02:42]} 5. Nf3 {[%clk 0:02:55]}  Be7 {[%clk 0:02:38]} 6. Bd3 {[%clk 0:02:48]}  dxc4 {[%clk 0:02:35]} 7. Bxc4 {[%clk 0:02:48]}  O-O {[%clk 0:02:36]} 8. h3 {[%clk 0:02:46]}  Bb4+ {[%clk 0:02:33]} 9. Nc3 {[%clk 0:02:43]}  Re8+ {[%clk 0:02:32]} 10. Be2 {[%clk 0:02:36]}  Qe7 {[%clk 0:02:25]} 11. Bg5 {[%clk 0:02:16]}  Nbd7 {[%clk 0:02:16]} 12. Qc2 {[%clk 0:01:54]}  h6 {[%clk 0:02:07]} 13. Bh4 {[%clk 0:01:45]}  Qe6 {[%clk 0:02:02]} 14. Rd1 {[%clk 0:01:15]}  c6 {[%clk 0:01:54]} 15. Rd2 {[%clk 0:01:11]}  Ne4 {[%clk 0:01:45]} 16. Nxe4 {[%clk 0:01:06]}  Qxe4 {[%clk 0:01:43]} 17. Qxe4 {[%clk 0:01:03]}  Rxe4 {[%clk 0:01:43]} 18. Bg3 {[%clk 0:00:47]}  Nf6 {[%clk 0:01:38]} 19. a3 {[%clk 0:00:45]}  Bxd2+ {[%clk 0:01:38]} 20. Kxd2 {[%clk 0:00:45]}  Bf5 {[%clk 0:01:37]} 21. Bd3 {[%clk 0:00:39]}  Rae8 {[%clk 0:01:32]} 22. Bxe4 {[%clk 0:00:37]}  Nxe4+ {[%clk 0:01:33]} 23. Kd1 {[%clk 0:00:33]}  Nxg3 {[%clk 0:01:34]} 24. fxg3 {[%clk 0:00:33]}  Be4 {[%clk 0:01:34]} 25. Re1 {[%clk 0:00:32]}  Kf8 {[%clk 0:01:33]} 26. Kd2 {[%clk 0:00:30]}  Bxf3 {[%clk 0:01:32]} 27. Rxe8+ {[%clk 0:00:25]}  Kxe8 {[%clk 0:01:31]} 28. gxf3 {[%clk 0:00:25]}  Kd7 {[%clk 0:01:32]} 29. Ke3 {[%clk 0:00:25]}  Ke6 {[%clk 0:01:32]} 30. Ke4 {[%clk 0:00:22]}  f5+ {[%clk 0:01:31]} 31. Ke3 {[%clk 0:00:22]}  g5 {[%clk 0:01:21]} 32. g4 {[%clk 0:00:18]}  fxg4 {[%clk 0:01:14]} 33. fxg4 {[%clk 0:00:18]}  Kd5 {[%clk 0:01:14]} 34. Kd3 {[%clk 0:00:17]}  a5 {[%clk 0:01:11]} 35. b3 {[%clk 0:00:17]}  b5 {[%clk 0:01:05]} 36. Ke3 {[%clk 0:00:15]}  a4 {[%clk 0:00:52]} 37. bxa4 {[%clk 0:00:15]}  bxa4 {[%clk 0:00:51]} 38. Kd3 {[%clk 0:00:16]}  c5 {[%clk 0:00:50]} 39. dxc5 {[%clk 0:00:16]}  Kxc5 {[%clk 0:00:51]} 40. Kc3 {[%clk 0:00:16]}  Kb5 {[%clk 0:00:46]} 41. Kd4 {[%clk 0:00:15]}  Kc6 {[%clk 0:00:41]} 42. Kc4 {[%clk 0:00:14]}  Kd6 {[%clk 0:00:42]} 43. Kb4 {[%clk 0:00:15]}  Kd5 {[%clk 0:00:43]} 44. Kxa4 {[%clk 0:00:15]}  Ke4 {[%clk 0:00:44]} 45. Kb5 {[%clk 0:00:14]}  Kf3 {[%clk 0:00:45]} 46. a4 {[%clk 0:00:15]}  Kg3 {[%clk 0:00:46]} 47. a5 {[%clk 0:00:15]}  Kxh3 {[%clk 0:00:47]} 48. a6 {[%clk 0:00:15]}  Kxg4 {[%clk 0:00:46]} 49. a7 {[%clk 0:00:15]}  h5 {[%clk 0:00:47]} 50. a8=Q {[%clk 0:00:15]}  h4 {[%clk 0:00:48]} 51. Qg2+ {[%clk 0:00:14]}  Kh5 {[%clk 0:00:48]} 52. Kc4 {[%clk 0:00:13]}  g4 {[%clk 0:00:49]} 53. Kd5 {[%clk 0:00:12]}  Kg5 {[%clk 0:00:50]} 54. Ke5 {[%clk 0:00:11]}  g3 {[%clk 0:00:51]} 55. Qh3 {[%clk 0:00:10]}  Kh5 {[%clk 0:00:51]} 56. Kf4 {[%clk 0:00:09]}  Kg6 {[%clk 0:00:51]} 57. Qxh4 {[%clk 0:00:09]}  g2 {[%clk 0:00:51]} 58. Qg3+ {[%clk 0:00:10]}  Kf6 {[%clk 0:00:52]} 59. Qxg2 {[%clk 0:00:10]} 1-0


[Site "https://www.chess.com"]